bitfinex-derivatives/quotes_SOLF0:USTF0_20250501
["timestamp","ask_amount","ask_price","bid_price","bid_amount"]
[1746080066651,6.7248,148.7,148.64,2.104]
[1746080067154,6.7248,148.7,148.66,6.7261]
[1746080067654,4.0093,148.72,148.66,6.7261]
[1746080068153,6.7247,148.7,148.66,6.7261]
[1746080069155,6.7251,148.69,148.66,6.7261]
[1746080069555,6.7251,148.69,148.65,6.7267]
[1746080070756,6.7247,148.7,148.66,6.7262]
[1746080071057,4.0093,148.72,148.63,23.5]
[1746080071258,6.7244,148.71,148.67,6.7256]
[1746080071451,4.0093,148.72,148.64,1.9216]
[1746080071854,6.7253,148.69,148.65,6.7265]
[1746080072858,6.7255,148.68,148.65,6.7265]
[1746080073260,6.7251,148.69,148.65,6.7265]
[1746080074962,6.7247,148.7,148.66,6.7263]
[1746080075963,13.84824666,148.71,148.64,1.9216]
[1746080076264,7.12404666,148.71,148.64,1.9216]
[1746080076961,6.7246,148.7,148.67,6.7259]
[1746080082974,13.84824666,148.71,148.68,6.7254]
[1746080083667,6.7247,148.7,148.67,6.7258]
[1746080083872,7.12404666,148.71,148.64,1.9216]
[1746080084573,6.7246,148.7,148.66,6.7263]
[1746080088382,7.12404666,148.71,148.65,6.7267]
[1746080088983,6.7254,148.69,148.65,6.7267]
[1746080089775,6.7254,148.69,148.64,1.9216]
[1746080089982,6.7255,148.68,148.64,1.9216]
[1746080090383,6.7255,148.68,148.65,6.7266]
[1746080090784,6.7252,148.69,148.65,6.7266]
[1746080091589,4.56177768,148.68,148.65,6.7266]
[1746080092384,4.56177768,148.68,148.66,6.7263]
[1746080094083,4.56177768,148.68,148.65,6.7266]
[1746080094386,4.56177768,148.68,148.64,1.9216]
[1746080095184,4.56177768,148.68,148.65,6.7266]
[1746080097192,4.56177768,148.68,148.66,6.7263]
[1746080098386,4.56177768,148.69,148.67,6.7259]
[1746080098587,4.56177768,148.7,148.65,4.56177768]
[1746080100190,4.56177768,148.7,148.67,6.7256]
[1746080101190,4.56177768,148.7,148.68,6.7254]
[1746080102483,4.56177768,148.7,148.69,6.725]
[1746080102686,4.56177768,148.72,148.67,4.56177768]
[1746080102885,4.56177768,148.72,148.67,28.06177768]
[1746080103391,4.56177768,148.72,148.71,6.7241]
[1746080103691,4.56177768,148.72,148.67,28.06177768]
[1746080104191,28.06177768,148.74,148.71,6.7241]
[1746080104992,28.06177768,148.74,148.72,6.7236]
[1746080105492,23.5,148.74,148.72,6.7236]
[1746080105693,23.5,148.77,148.67,23.5]
[1746080105985,30.2215,148.77,148.67,23.5]
[1746080106295,30.2215,148.77,148.73,6.7229]
[1746080108694,30.2215,148.77,148.74,6.7227]
[1746080108994,23.5,148.77,148.74,6.7227]
[1746080109197,23.5,148.77,148.67,23.5]
[1746080109696,30.2215,148.77,148.67,23.5]
[1746080110597,23.5,148.77,148.67,23.5]
[1746080111397,6.7227,148.75,148.71,6.7238]
[1746080111597,23.5,148.77,148.67,23.5]
[1746080111898,6.723,148.74,148.71,6.7241]
[1746080113698,6.7223,148.76,148.72,6.7236]
[1746080114398,6.7223,148.75,148.72,6.7236]
[1746080115000,6.7221,148.76,148.73,6.7232]
[1746080115202,23.5,148.77,148.67,23.5]
[1746080115702,23.5,148.77,148.69,7.12177151]
[1746080115904,23.5,148.77,148.7,4.017]
[1746080116100,23.5,148.77,148.71,23.5]
[1746080116302,23.5,148.77,148.74,6.7225]
[1746080117304,30.2215,148.77,148.74,6.7225]
[1746080123102,6.7219,148.76,148.74,6.7225]
[1746080123299,23.5,148.77,148.74,6.7225]
[1746080124310,30.2216,148.77,148.74,6.7225]
[1746080124810,23.5,148.77,148.75,6.7222]
[1746080125014,23.48,148.8,148.71,25.5044]
[1746080125414,6.7206,148.79,148.71,25.5044]
[1746080126817,6.7206,148.79,148.75,6.722]
[1746080127816,6.721,148.78,148.75,6.722]
[1746080129319,23.48,148.8,148.71,25.5044]
[1746080129320,6.7206,148.79,148.71,25.5044]
[1746080129822,6.7206,148.79,148.75,6.7221]
[1746080130323,6.7206,148.79,148.71,25.5044]
[1746080130925,6.7206,148.79,148.75,6.722]
[1746080131523,6.721,148.78,148.75,6.722]
[1746080133615,6.7207,148.79,148.75,6.722]
[1746080135834,6.7207,148.79,148.76,6.7218]
[1746080137535,11.27639906,148.79,148.76,6.7218]
[1746080142634,4.55569906,148.79,148.73,4.55569906]
[1746080145240,4.55569906,148.79,148.77,6.7211]
[1746080145440,28.03569906,148.8,148.73,4.55569906]
[1746080145641,28.03569906,148.8,148.75,4.55569906]
[1746080145839,4.55569906,148.8,148.75,28.03569906]
[1746080146241,6.7198,148.81,148.75,28.03569906]
[1746080146542,11.27499906,148.82,148.78,6.7206]
[1746080148145,6.7189,148.83,148.8,6.72]
[1746080148444,4.55569906,148.84,148.79,4.55569906]
[1746080149243,11.27399906,148.84,148.81,6.7195]
[1746080150642,4.55569906,148.84,148.82,6.7189]
[1746080151744,27.3819,148.85,148.83,6.7187]
[1746080151942,27.3819,148.85,148.79,4.55569906]
[1746080151943,23.48,148.85,148.79,28.01569906]
[1746080152341,4.55569906,148.86,148.83,6.7184]
[1746080152941,4.55569906,148.86,148.84,6.7182]
[1746080153553,4.55569906,148.86,148.85,6.7178]
[1746080153847,28.01569906,148.88,148.85,6.7178]
[1746080154839,34.73219906,148.88,148.85,6.7178]
[1746080155535,23.46,148.88,148.85,6.7178]
[1746080156040,30.1765,148.88,148.84,6.7181]
[1746080156340,23.46,148.88,148.79,23.46]
[1746080156537,6.7172,148.87,148.79,23.46]
[1746080157045,6.7176,148.86,148.79,23.46]
[1746080157242,6.7176,148.86,148.82,6.7189]
[1746080157646,6.7176,148.86,148.79,23.46]
[1746080160153,6.7176,148.86,148.82,6.7189]
[1746080162355,6.7176,148.86,148.83,6.7187]
[1746080162551,6.7171,148.87,148.83,6.7187]
[1746080167558,6.7171,148.87,148.84,6.7182]
[1746080167761,23.46,148.88,148.79,23.46]
[1746080168253,23.46,148.88,148.85,6.7175]
[1746080168761,23.46,148.88,148.79,23.46]
[1746080168952,30.1765,148.88,148.79,23.46]
[1746080169158,30.1765,148.88,148.84,6.718]
[1746080169359,30.1765,148.88,148.79,23.46]
[1746080169954,30.1765,148.88,148.84,6.718]
[1746080170758,30.1765,148.88,148.85,6.7177]
[1746080172562,23.46,148.88,148.85,6.7177]
[1746080173360,23.46,148.88,148.86,6.7172]
[1746080173961,30.1765,148.88,148.84,6.7179]
[1746080175259,30.1765,148.88,148.85,6.7176]
[1746080175756,6.717,148.87,148.79,23.46]
[1746080176259,6.717,148.87,148.83,6.7183]
[1746080177663,6.717,148.87,148.84,6.7181]
[1746080185568,11.26787797,148.87,148.84,6.7181]
[1746080193676,30.1766,148.88,148.85,6.7177]
[1746080193875,34.72747797,148.88,148.85,6.7177]
[1746080194074,34.72747797,148.88,148.82,2.0211]
[1746080194278,28.01087797,148.88,148.84,6.718]
[1746080195175,6.7169,148.87,148.84,6.718]
[1746080202474,6.7169,148.87,148.82,2.0211]
[1746080203273,6.7169,148.87,148.84,6.718]
[1746080205468,6.7174,148.86,148.83,6.7185]
[1746080206280,6.7172,148.87,148.83,6.7185]
[1746080207581,6.7172,148.87,148.84,6.7182]
[1746080211583,6.7172,148.87,148.82,2.0211]
[1746080212182,6.7172,148.87,148.84,6.7179]
[1746080214588,11.26827797,148.86,148.83,6.7186]
[1746080215787,6.7179,148.85,148.82,8.7401]
[1746080215984,4.55087797,148.86,148.76,4.1907]
[1746080216188,4.55087797,148.82,148.78,23.44]
[1746080216384,4.55087797,148.82,148.77,8.7308]
[1746080216385,6.7204,148.8,148.77,8.7308]
[1746080216591,4.55087797,148.8,148.75,23.44]
[1746080217289,27.99087797,148.83,148.75,23.44]
[1746080217489,34.70957797,148.83,148.79,6.7202]
[1746080217688,34.70957797,148.83,148.77,4.55087797]
[1746080217888,27.99087797,148.83,148.77,4.55087797]
[1746080218189,4.55087797,148.83,148.77,4.55087797]
[1746080218382,4.55087797,148.83,148.77,6.63837797]
[1746080219592,4.55087797,148.83,148.8,6.7197]
[1746080220190,11.26977797,148.83,148.79,6.7203]
[1746080220386,11.26977797,148.83,148.77,6.63837797]
[1746080220794,11.26977797,148.83,148.79,6.7201]
[1746080221192,4.55087797,148.83,148.77,6.63837797]
[1746080221692,4.55087797,148.83,148.8,6.72]
[1746080222492,11.26877797,148.85,148.81,6.7195]
[1746080223907,6.7182,148.84,148.81,6.7195]
[1746080224705,4.55087797,148.85,148.8,6.7199]
[1746080224894,4.55087797,148.83,148.77,6.63837797]
[1746080225098,4.55087797,148.81,148.77,2.0875]
[1746080225705,6.7204,148.8,148.75,23.44]
[1746080225896,4.55087797,148.79,148.75,23.44]
[1746080226204,6.721,148.78,148.75,30.1621]
[1746080226396,6.721,148.78,148.75,6.7221]
[1746080227697,6.721,148.78,148.74,6.7226]
[1746080229306,6.721,148.78,148.75,6.7223]
[1746080230499,6.721,148.78,148.74,6.7226]
[1746080231202,4.55087797,148.77,148.73,0.31883]
[1746080231706,6.7219,148.76,148.73,0.31883]
[1746080232300,4.55087797,148.77,148.73,7.04193]
[1746080232808,6.722,148.76,148.73,7.04193]
[1746080233506,11.27247797,148.77,148.73,7.04193]
[1746080234707,6.7219,148.76,148.73,7.04193]
[1746080235407,11.27247797,148.77,148.73,7.04193]
[1746080238407,6.7219,148.76,148.73,7.04193]
[1746080238812,4.55087797,148.77,148.73,0.31883]
[1746080239003,6.7219,148.76,148.73,0.31883]
[1746080240106,6.7219,148.76,148.73,7.04203]
[1746080240312,11.27317797,148.75,148.73,0.31883]
[1746080244200,11.27317797,148.75,148.71,6.7239]
[1746080244406,6.7229,148.74,148.71,6.7239]
[1746080245409,6.7232,148.73,148.7,6.7244]
[1746080246210,11.27407797,148.73,148.7,6.7244]
[1746080248707,6.7237,148.72,148.69,32.1702]
[1746080250717,11.27417797,148.73,148.7,6.7245]
[1746080252217,4.55087797,148.75,148.69,25.4454]
[1746080252517,11.27347797,148.75,148.72,6.7234]
[1746080252719,4.55087797,148.73,148.67,0.35804]
[1746080252918,4.55087797,148.69,148.67,0.35804]
[1746080253215,6.7247,148.7,148.67,0.35804]
[1746080253522,23.44,148.72,148.67,0.35804]
[1746080253720,6.7245,148.71,148.67,7.08394]
[1746080255021,6.7247,148.7,148.67,7.08394]
[1746080255715,23.44,148.72,148.67,7.08394]
[1746080255924,6.7242,148.71,148.67,7.08394]
[1746080256222,6.7242,148.71,148.68,6.7254]
[1746080256417,6.7242,148.71,148.67,0.35804]
[1746080257425,6.7242,148.71,148.67,7.08374]
[1746080259427,6.7247,148.7,148.67,0.35804]
[1746080264028,6.725,148.69,148.67,0.35804]
[1746080264525,23.44,148.72,148.67,0.35804]
[1746080265527,6.7254,148.69,148.65,30.1668]
[1746080266328,6.7255,148.68,148.65,30.1668]
[1746080266530,30.56506418,148.72,148.65,23.44]
[1746080267024,6.7259,148.67,148.65,23.44]
[1746080267226,30.56506418,148.72,148.62,23.48]
[1746080267432,7.12506418,148.69,148.62,23.48]
[1746080267725,6.7265,148.66,148.62,23.48]
[1746080267932,6.7265,148.66,148.62,30.2079]
[1746080268322,23.48,148.68,148.62,23.48]
[1746080268832,6.7271,148.65,148.62,23.48]
[1746080269329,6.7271,148.65,148.62,30.2081]
[1746080269830,6.7266,148.66,148.62,30.2081]
[1746080270034,6.7266,148.66,148.63,6.7276]
[1746080270332,6.7262,148.67,148.62,23.48]
[1746080270533,23.48,148.68,148.62,23.48]
[1746080270924,6.7252,148.69,148.62,23.48]
[1746080271427,23.48,148.71,148.62,23.48]
[1746080271630,6.7251,148.69,148.62,23.48]
[1746080271829,6.7251,148.69,148.66,6.7263]
[1746080272028,23.48,148.73,148.62,23.48]
[1746080272529,6.7244,148.71,148.67,6.7257]
[1746080272831,23.48,148.73,148.67,6.7257]
[1746080273332,6.7249,148.7,148.66,6.7262]
[1746080273530,23.48,148.73,148.66,6.7262]
[1746080275336,7.12506418,148.72,148.66,6.7262]
[1746080276225,6.725,148.69,148.66,6.7262]
[1746080276735,7.12506418,148.72,148.65,6.7267]
[1746080277736,7.12506418,148.72,148.62,23.48]
[1746080278536,6.7248,148.7,148.62,23.48]
[1746080279138,6.7248,148.7,148.66,6.7261]
[1746080279939,6.7252,148.69,148.66,6.7261]
[1746080280134,7.12506418,148.72,148.62,23.48]
[1746080281338,1.9491,148.71,148.62,23.48]
[1746080281540,1.9491,148.71,148.63,6.7276]
[1746080282238,6.7262,148.67,148.64,6.7272]
[1746080282437,23.48,148.69,148.62,23.48]
[1746080283445,23.48,148.69,148.61,0.37882]
[1746080283446,30.60506418,148.69,148.63,6.7275]
[1746080283741,4.2044,148.68,148.61,23.85882]
[1746080283941,7.12506418,148.66,148.61,0.37882]
[1746080284136,23.48,148.65,148.61,0.37882]
[1746080284542,6.7282,148.62,148.61,0.37882]
[1746080285443,7.12506418,148.63,148.55,556.06]
[1746080286143,6.7294,148.6,148.56,6.7306]
[1746080286544,6.7296,148.59,148.56,6.7306]
[1746080286738,7.12506418,148.63,148.56,6.7306]
[1746080287138,7.12506418,148.63,148.54,23.48]
[1746080287944,6.7296,148.59,148.55,6.7309]
[1746080288540,6.7294,148.6,148.56,6.7305]
[1746080288742,23.48,148.61,148.52,23.48]
[1746080289541,6.7298,148.59,148.52,23.48]
[1746080290046,6.7292,148.6,148.56,6.7306]
[1746080290344,6.7292,148.6,148.52,23.48]
[1746080290546,23.48,148.64,148.52,30.60506418]
[1746080290945,6.728,148.63,148.59,6.7292]
[1746080292243,6.7282,148.62,148.59,6.7292]
[1746080292440,23.48,148.64,148.59,6.7292]
[1746080292640,6.7279,148.63,148.59,6.7292]
[1746080295647,6.7279,148.63,148.6,6.729]
[1746080295945,30.2074,148.64,148.6,6.729]
[1746080296146,23.48,148.64,148.6,6.729]
[1746080296340,6.7277,148.63,148.6,6.729]
[1746080296947,30.2074,148.64,148.6,6.729]
[1746080297544,23.48,148.64,148.61,6.7286]
[1746080297745,6.727,148.65,148.57,6.0483]
[1746080299152,6.727,148.65,148.61,6.7283]
[1746080300249,7.12506418,148.66,148.57,6.0483]
[1746080300748,6.7284,148.62,148.58,6.7297]
[1746080301544,7.12506418,148.66,148.53,0.4181]
[1746080301752,30.72506418,148.63,148.54,23.6]
[1746080301950,23.6,148.62,148.54,23.6]
[1746080302248,6.7299,148.59,148.55,6.731]
[1746080304653,6.7301,148.58,148.54,30.3316]
[1746080305055,6.7301,148.58,148.54,23.6]
[1746080305752,6.7297,148.59,148.55,6.7313]
[1746080307551,23.6,148.62,148.54,23.6]
[1746080308057,30.3284,148.62,148.57,6.73]
[1746080308258,30.3284,148.62,148.54,23.6]
[1746080308758,23.6,148.62,148.54,23.6]
[1746080308953,23.6,148.65,148.55,9.18176418]
[1746080309455,23.6,148.65,148.56,2.0112]
[1746080309658,6.7274,148.64,148.56,2.0112]
[1746080309860,6.7274,148.64,148.57,2.1179]
[1746080310057,6.7274,148.64,148.58,23.6]
[1746080310550,6.7274,148.64,148.6,6.729]
[1746080311653,6.7283,148.62,148.58,6.7297]
[1746080311858,7.12506418,148.63,148.54,23.6]
[1746080312059,7.12506418,148.63,148.54,25.6914]
[1746080312460,6.729,148.61,148.57,6.7302]
[1746080313560,7.12506418,148.63,148.57,6.7302]
[1746080313561,6.7291,148.6,148.57,6.7302]
[1746080313964,7.12506418,148.63,148.58,6.73]
[1746080314265,23.6,148.65,148.54,32.81646418]
[1746080314563,6.728,148.63,148.59,6.7295]
[1746080315858,6.7275,148.64,148.6,6.7288]
[1746080316963,30.327,148.65,148.61,6.7286]
[1746080318168,23.6,148.65,148.62,6.7281]
[1746080319967,30.3269,148.65,148.62,6.7281]
[1746080321371,23.6,148.65,148.63,6.7277]
[1746080321570,13.85156418,148.66,148.63,6.7277]
[1746080321871,13.85156418,148.66,148.59,3.9014]
[1746080322071,13.85156418,148.66,148.62,6.728]
[1746080322973,6.7269,148.65,148.62,6.728]
[1746080323373,6.7269,148.65,148.61,6.7285]
[1746080324076,6.7273,148.64,148.61,6.7285]
[1746080325980,6.727,148.65,148.61,6.7285]
[1746080328081,6.7274,148.64,148.6,8.833]
[1746080329282,6.7274,148.64,148.61,6.7285]
[1746080330183,6.727,148.65,148.61,6.7285]
[1746080331379,6.727,148.65,148.62,6.7282]
[1746080331583,6.7273,148.64,148.6,2.1041]
[1746080331885,6.7273,148.64,148.6,8.8331]
[1746080332185,6.7273,148.64,148.6,2.1041]
[1746080332382,6.7278,148.63,148.58,23.6]
[1746080332583,6.7278,148.63,148.59,6.7293]
[1746080333487,6.7275,148.64,148.6,6.7288]
[1746080337683,6.7275,148.64,148.61,6.7286]
[1746080338487,6.7275,148.64,148.6,6.7289]
[1746080339485,6.7277,148.63,148.6,6.7289]
[1746080341088,6.7274,148.64,148.6,6.7289]
[1746080341488,6.7274,148.64,148.61,6.7286]
[1746080344894,23.6,148.68,148.58,23.6]
[1746080345190,23.54,148.69,148.58,23.6]
[1746080345989,6.7255,148.68,148.64,6.7273]
[1746080346391,30.66506418,148.69,148.58,23.6]
[1746080346987,2.0494,148.68,148.58,23.6]
[1746080347188,2.0494,148.68,148.6,6.7288]
[1746080347378,1.9656,148.67,148.58,23.6]
[1746080348089,6.7273,148.64,148.6,6.7288]
[1746080353096,6.727,148.65,148.61,6.7286]
[1746080354094,6.7273,148.64,148.61,6.7286]
[1746080356596,6.727,148.65,148.62,6.728]
[1746080356894,30.66506418,148.66,148.58,23.6]
[1746080357194,6.7276,148.64,148.6,6.7288]
[1746080357689,30.66506418,148.66,148.58,23.6]
[1746080357690,6.7279,148.63,148.58,23.6]
[1746080357895,6.7279,148.63,148.59,6.7294]
[1746080358195,30.66506418,148.66,148.59,6.7294]
[1746080359196,6.7283,148.62,148.59,6.7294]
[1746080360895,6.7279,148.63,148.6,6.7291]
[1746080361089,30.66506418,148.66,148.58,23.6]
[1746080362695,6.7274,148.64,148.6,6.7289]
[1746080363297,6.7274,148.64,148.61,6.7285]
[1746080363498,6.727,148.65,148.61,6.7285]
[1746080364797,6.7274,148.64,148.61,6.7285]
[1746080368700,6.727,148.65,148.62,6.7281]
[1746080370499,6.727,148.65,148.63,6.7277]
[1746080371101,6.727,148.65,148.62,6.728]
[1746080373304,23.54,148.66,148.58,23.6]
[1746080374002,30.2664,148.66,148.58,23.6]
[1746080374505,30.2664,148.66,148.62,6.7278]
[1746080375101,30.2664,148.66,148.63,6.7277]
[1746080378606,30.2664,148.66,148.62,6.728]
[1746080379006,30.2664,148.66,148.6,23.74]
[1746080380702,7.12506418,148.69,148.6,23.74]
[1746080380907,23.74,148.69,148.65,6.7268]
[1746080381304,6.7255,148.68,148.65,6.7268]
[1746080382208,6.7255,148.68,148.64,6.7271]
[1746080383412,23.74,148.69,148.61,5.9825]
[1746080383612,30.86506418,148.69,148.61,5.9825]
[1746080384405,6.7261,148.67,148.64,6.727]
[1746080389511,11.28862641,148.67,148.64,6.727]
[1746080394616,4.56252641,148.67,148.64,6.727]
[1746080396215,11.28852641,148.67,148.63,6.7276]
[1746080397516,11.28852641,148.67,148.64,6.7272]
[1746080398817,4.56252641,148.67,148.65,6.7268]
[1746080402022,4.56252641,148.67,148.64,6.7271]
[1746080402717,11.28852641,148.67,148.64,6.7271]
[1746080408532,6.7266,148.66,148.62,6.7279]
[1746080409132,6.7266,148.66,148.63,6.7277]
[1746080409333,11.28962641,148.65,148.61,1.9622]
[1746080409531,4.56252641,148.65,148.61,1.9622]
[1746080410435,4.56252641,148.65,148.62,6.7278]
[1746080410835,4.56252641,148.65,148.63,6.7276]
[1746080411535,6.7267,148.66,148.63,6.7276]
[1746080412035,11.28852641,148.67,148.64,6.7272]
[1746080414237,11.28852641,148.67,148.63,6.7275]
[1746080414737,6.7265,148.66,148.63,6.7275]
[1746080415637,11.28862641,148.67,148.63,6.7275]
[1746080415839,11.28862641,148.67,148.64,6.7272]
[1746080416335,11.28862641,148.67,148.63,6.7275]
[1746080416535,6.7264,148.66,148.63,6.7275]
[1746080417737,11.28862641,148.67,148.63,6.7275]
[1746080419232,11.28862641,148.67,148.64,6.7272]
[1746080422438,11.28862641,148.67,148.63,6.7275]
[1746080423039,6.7264,148.66,148.63,6.7275]
[1746080427047,11.28942641,148.65,148.62,6.7281]
[1746080429049,4.56252641,148.65,148.62,6.7281]
[1746080430651,4.56252641,148.65,148.63,6.7275]
[1746080435258,11.28862641,148.67,148.63,6.7275]
[1746080436656,4.56252641,148.65,148.6,23.5]
[1746080437660,11.28962641,148.65,148.61,6.7284]
[1746080437855,4.56252641,148.65,148.61,6.7284]
[1746080438853,6.7273,148.64,148.61,6.7284]
[1746080441063,11.28952641,148.65,148.61,6.7284]
[1746080441354,1.9967,148.68,148.6,23.5]
[1746080441559,6.7272,148.65,148.6,23.5]
[1746080442459,6.7272,148.65,148.61,6.7284]
[1746080442761,6.7274,148.64,148.61,6.7284]
[1746080443661,6.727,148.65,148.61,6.7284]
[1746080452368,6.727,148.65,148.62,6.7281]
[1746080453768,6.727,148.65,148.61,6.7285]
[1746080455269,6.727,148.65,148.62,6.7282]
[1746080458874,23.74,148.69,148.6,23.5]
[1746080459067,23.74,148.69,148.62,4.56252641]
[1746080459267,30.4654,148.69,148.64,6.7269]
[1746080459467,6.7254,148.69,148.62,6.52082641]
[1746080459768,36.86482641,148.7,148.66,6.7263]
[1746080460471,34.76722641,148.7,148.66,6.7263]
[1746080463876,28.04252641,148.7,148.67,6.7259]
[1746080464877,34.76712641,148.7,148.67,6.7259]
[1746080466276,28.04252641,148.7,148.67,6.7259]
[1746080469177,34.76712641,148.7,148.66,6.7262]
[1746080470087,23.48,148.7,148.67,6.7257]
[1746080470276,11.28682641,148.71,148.67,6.7257]
[1746080470582,4.56252641,148.71,148.67,6.7257]
[1746080471676,4.56252641,148.71,148.64,28.04252641]
[1746080471879,4.56252641,148.69,148.64,23.48]
[1746080472274,4.56252641,148.67,148.64,23.48]
[1746080472475,4.56252641,148.67,148.65,6.7265]
[1746080472676,4.56252641,148.67,148.64,23.48]
[1746080472879,4.56252641,148.67,148.64,30.2069]
[1746080474583,4.56252641,148.67,148.64,6.7269]
[1746080477175,4.56252641,148.67,148.65,6.7268]
[1746080478086,28.04252641,148.69,148.66,6.7264]
[1746080480682,34.76772641,148.69,148.66,6.7264]
[1746080483581,28.04252641,148.69,148.63,4.56252641]
[1746080483787,28.04252641,148.69,148.67,6.7259]
[1746080483984,28.04252641,148.69,148.63,4.56252641]
[1746080484179,4.56252641,148.69,148.63,4.56252641]
[1746080484787,4.56252641,148.69,148.67,6.7256]
[1746080485992,11.28672641,148.71,148.68,6.7254]
[1746080486288,4.56252641,148.71,148.68,6.7254]
[1746080486790,4.56252641,148.71,148.69,6.725]
[1746080486983,11.28662641,148.71,148.65,28.22252641]
[1746080488594,11.28662641,148.71,148.67,6.7256]
[1746080490992,6.7246,148.7,148.67,6.7256]
[1746080491792,11.28682641,148.71,148.67,6.7256]
[1746080492696,4.56252641,148.69,148.67,6.7256]
[1746080496400,4.56252641,148.69,148.68,6.7255]
[1746080496698,4.56252641,148.69,148.65,23.66]
[1746080496994,4.56252641,148.69,148.67,6.7256]
[1746080498204,4.56252641,148.69,148.68,6.7255]
[1746080498398,6.7243,148.71,148.65,23.66]
[1746080498399,4.56252641,148.71,148.65,28.22252641]
[1746080498700,4.56252641,148.71,148.68,6.7251]
[1746080501201,11.28672641,148.71,148.68,6.7251]
[1746080505402,6.7247,148.7,148.67,6.7258]
[1746080509208,11.28682641,148.71,148.67,6.7258]
[1746080509907,11.28682641,148.71,148.68,6.7255]
[1746080510407,11.28682641,148.71,148.65,28.22252641]
[1746080511104,11.28682641,148.71,148.67,6.7257]
[1746080511406,6.7246,148.7,148.65,28.22252641]
[1746080511607,6.7246,148.7,148.66,6.7259]
[1746080512208,6.7246,148.7,148.67,6.7259]
[1746080523418,11.28672641,148.71,148.68,6.7254]
[1746080523714,4.56252641,148.71,148.65,4.56252641]
[1746080524817,6.7246,148.7,148.67,6.7256]
[1746080525813,4.56252641,148.69,148.64,23.52]
[1746080527426,6.7258,148.68,148.65,6.7266]
[1746080528921,4.56252641,148.69,148.62,1.9583]
[1746080529212,4.56252641,148.67,148.62,1.9583]
[1746080529617,6.7267,148.66,148.62,8.6861]
[1746080529920,6.7267,148.66,148.62,1.9583]
[1746080531219,6.7267,148.66,148.63,6.7277]
[1746080531418,11.28852641,148.67,148.63,6.7277]
[1746080532421,6.7264,148.66,148.63,6.7277]
[1746080539732,11.28852641,148.67,148.63,6.7277]
[1746080541233,6.7269,148.65,148.62,8.6863]
[1746080541533,11.28942641,148.65,148.62,6.728]
[1746080541734,4.56252641,148.65,148.61,23.80277]
[1746080541922,4.56252641,148.65,148.61,0.28277]
[1746080543237,6.7273,148.64,148.61,7.01127]
[1746080543431,4.56252641,148.65,148.61,0.28277]
[1746080544438,4.56252641,148.63,148.61,0.28277]
[1746080544941,11.29052641,148.63,148.61,0.28277]
[1746080545241,4.56252641,148.63,148.59,6.7292]
[1746080545437,4.56252641,148.63,148.58,23.52]
[1746080545638,11.29042641,148.63,148.6,6.7291]
[1746080546742,28.06252641,148.64,148.58,28.08252641]
[1746080547439,28.06252641,148.64,148.6,6.7288]
[1746080548044,6.7278,148.63,148.6,6.7288]
[1746080548551,34.79012641,148.64,148.6,6.7288]
[1746080549745,6.7278,148.63,148.6,6.7288]
[1746080553145,28.06252641,148.64,148.58,28.08252641]
[1746080553549,4.56252641,148.64,148.58,28.08252641]
[1746080554550,4.56252641,148.64,148.61,6.7282]
[1746080555753,4.56252641,148.64,148.62,6.728]
[1746080557249,4.56252641,148.66,148.6,4.56252641]
[1746080557648,23.5,148.67,148.62,4.56252641]
[1746080558056,23.5,148.67,148.64,6.7269]
[1746080558657,23.5,148.67,148.65,6.7268]
[1746080558849,11.28822641,148.68,148.65,6.7268]
[1746080561359,4.56252641,148.68,148.66,6.7263]
[1746080570160,4.56252641,148.68,148.62,28.06252641]